[Event "UK Open Blitz Championships 2024 - London Qualifier"]
[Site "London, United Kingdom"]
[Date "2024.09.21"]
[Round "15.5"]
[White "Czopor, Maciej"]
[Black "Andal, Edmond"]
[Result "1-0"]
[TimeControl "3 minutes + 2 seconds incr. from move 1"]
[WhiteTitle "FM"]
[WhiteFideId "21805431"]
[BlackFideId "5225752"]
[WhiteElo "2320"]
[BlackElo "2071"]

1. e4 {[%clk 00:03:02]} {[%emt 00:00:01]} c5 {[%clk 00:03:03]} {[%emt
00:00:01]} 2. Nf3 {[%clk 00:03:03]} e6 {[%clk 00:03:04]} 3. d4 {[%clk
00:03:05]} cxd4 {[%clk 00:03:05]} 4. Nxd4 {[%clk 00:03:06]} {[%emt 00:00:01]}
a6 {[%clk 00:03:05]} 5. c4 {[%clk 00:03:08]} Nf6 {[%clk 00:03:06]} {[%emt
00:00:02]} 6. Nc3 {[%clk 00:03:09]} Bb4 {[%clk 00:03:06]} 7. Nc2 {[%clk
00:02:49]} {[%emt 00:00:22]} Be7 {[%clk 00:01:50]} {[%emt 00:01:18]} 8. e5
{[%clk 00:02:47]} {[%emt 00:00:05]} Ng8 {[%clk 00:01:49]} {[%emt 00:00:02]} 9.
Qg4 {[%clk 00:02:47]} {[%emt 00:00:02]} Kf8 {[%clk 00:01:49]} {[%emt 00:00:02]}
10. Bf4 {[%clk 00:02:46]} {[%emt 00:00:03]} h5 {[%clk 00:01:42]} {[%emt
00:00:09]} 11. Qf3 {[%clk 00:02:41]} {[%emt 00:00:07]} Nc6 {[%clk 00:01:33]}
{[%emt 00:00:11]} 12. Rd1 {[%clk 00:02:34]} {[%emt 00:00:09]} g5 {[%clk
00:01:32]} {[%emt 00:00:04]} 13. Be3 {[%clk 00:02:23]} {[%emt 00:00:13]} Nxe5
{[%clk 00:01:29]} {[%emt 00:00:04]} 14. Qe4 {[%clk 00:02:22]} {[%emt 00:00:03]}
Qc7 {[%emt 00:00:13]} 15. h4 {[%clk 00:01:52]} {[%emt 00:00:31]} Nf6 {[%clk
00:01:06]} {[%emt 00:00:15]} 16. Qd4 {[%clk 00:01:54]} Nc6 {[%clk 00:00:55]}
{[%emt 00:00:13]} 17. Qd2 {[%clk 00:01:52]} {[%emt 00:00:04]} g4 {[%clk
00:00:51]} {[%emt 00:00:06]} 18. Bd3 {[%clk 00:01:54]} Ne5 {[%clk 00:00:47]}
{[%emt 00:00:05]} 19. b3 {[%clk 00:01:32]} {[%emt 00:00:24]} b6 {[%clk
00:00:36]} {[%emt 00:00:14]} 20. Ne4 {[%clk 00:01:13]} {[%emt 00:00:22]} Bb7
{[%clk 00:00:34]} {[%emt 00:00:03]} 21. Nxf6 {[%clk 00:00:40]} {[%emt
00:00:35]} Bxf6 {[%clk 00:00:35]} {[%emt 00:00:01]} 22. O-O {[%clk 00:00:41]}
{[%emt 00:00:01]} Bxh4 {[%clk 00:00:29]} {[%emt 00:00:07]} 23. Qb4+ {[%clk
00:00:33]} {[%emt 00:00:11]} Kg8 {[%clk 00:00:23]} {[%emt 00:00:08]} 24. Qxb6
{[%clk 00:00:33]} {[%emt 00:00:02]} Qxb6 {[%clk 00:00:13]} {[%emt 00:00:12]} 25.
Bxb6 {[%clk 00:00:34]} Bf6 {[%clk 00:00:11]} {[%emt 00:00:04]} 26. Be2 {[%clk
00:00:28]} {[%emt 00:00:08]} Kg7 {[%emt 00:00:03]} 27. Ne3 {[%clk 00:00:27]}
{[%emt 00:00:03]} Rab8 {[%clk 00:00:09]} {[%emt 00:00:03]} 28. Bc7 {[%clk
00:00:28]} {[%emt 00:00:01]} Rbc8 {[%clk 00:00:08]} {[%emt 00:00:03]} 29. Bxe5
{[%clk 00:00:29]} Bxe5 {[%clk 00:00:09]} 30. Rxd7 {[%clk 00:00:31]} Bc6 {[%clk
00:00:10]} 31. Ra7 {[%clk 00:00:32]} Bd4 {[%clk 00:00:08]} {[%emt 00:00:04]} 32.
Rxa6 {[%clk 00:00:32]} {[%emt 00:00:01]} Kg6 {[%clk 00:00:08]} {[%emt
00:00:02]} 33. Nc2 {[%clk 00:00:31]} {[%emt 00:00:03]} Be5 {[%clk 00:00:08]}
{[%emt 00:00:02]} 34. b4 {[%clk 00:00:27]} {[%emt 00:00:07]} h4 {[%clk
00:00:09]} {[%emt 00:00:02]} 35. Bxg4 {[%clk 00:00:19]} {[%emt 00:00:09]} Kf6
{[%clk 00:00:10]} 36. Ne3 {[%clk 00:00:19]} {[%emt 00:00:03]} Bb7 {[%clk
00:00:09]} {[%emt 00:00:03]} 37. Ra7 {[%clk 00:00:20]} Ba8 {[%clk 00:00:10]}
{[%emt 00:00:02]} 38. Bh3 {[%clk 00:00:19]} {[%emt 00:00:03]} Bd4 {[%clk
00:00:10]} {[%emt 00:00:02]} 39. Rd7 {[%clk 00:00:20]} Bc6 {[%emt 00:00:03]} 40.
Rxd4 {[%clk 00:00:20]} Ra8 {[%clk 00:00:11]} 41. b5 {[%clk 00:00:19]} {[%emt
00:00:03]} Bb7 {[%clk 00:00:11]} {[%emt 00:00:02]} 42. Rd7 {[%clk 00:00:20]}
Be4 {[%clk 00:00:12]} 43. Rd4 {[%clk 00:00:17]} {[%emt 00:00:06]} Bg6 {[%clk
00:00:13]} {[%emt 00:00:01]} 44. c5 {[%clk 00:00:17]} {[%emt 00:00:02]} Rhc8
{[%clk 00:00:12]} {[%emt 00:00:02]} 45. c6 {[%clk 00:00:18]} {[%emt 00:00:01]}
Ra5 {[%clk 00:00:13]} {[%emt 00:00:01]} 46. Nc4 {[%clk 00:00:14]} {[%emt
00:00:05]} Rxa2 {[%clk 00:00:04]} {[%emt 00:00:11]} 47. Nd6 {[%clk 00:00:16]}
Rc7 {[%clk 00:00:04]} {[%emt 00:00:02]} 48. Ne8+ {[%clk 00:00:17]} Ra8 {[%emt
00:00:04]} 1-0